[Event "Croatian 1B League 2022"]
[Site "Porec"]
[Date "2022.09.27"]
[Round "4.11"]
[White "Sevo, Igor"]
[Black "Bilobrk, Franjo"]
[Result "1/2-1/2"]
[ECO "A30"]
[WhiteElo "2255"]
[BlackElo "2341"]
[Annotator "TA"]
[PlyCount "98"]
[EventDate "2022.09.24"]
[EventType "team-tourn"]
[EventCountry "CRO"]
[SourceTitle "playchess.com"]
[Source "ChessBase"]
[SourceQuality "1"]
[TimeControl "40/5400+30:1800+30"]

{[%evp 16,98,21,27,22,-6,-2,1,14,0,14,17,27,20,57,36,54,56,51,34,47,27,48,46,44,16,16,22,16,-6,0,0,28,28,32,0,0,0,0,0,0,0,42,28,49,49,49,49,62,54,54,35,35,41,41,33,34,34,35,22,29,27,48,22,27,0,0,0,0,0,0,0,0,0,0,0,0,0,0,0,0,0,0,0,0]} 1. Nf3 {[%emt 0:00:04]} Nf6 {[%emt 0:02:29]} 2. g3 {[%emt 0:00:10]} b6 {[%emt 0:00:57]} 3. Bg2 {[%emt 0:00:09]} Bb7 {[%emt 0:00:02]} 4. O-O {[%emt 0:00:14]} c5 {[%emt 0:01:05]} 5. c4 {[%emt 0:00:06]} g6 {[%emt 0:01:06]} 6. Nc3 {[%emt 0:00:06]} Bg7 {[%emt 0:00:03]} 7. d4 {[%emt 0:00:08]} cxd4 {[%emt 0:00:11]} 8. Qxd4 {[%emt 0:00:06]} d6 {[%emt 0:00:52]} 9. Qh4 {[%emt 0:06:31]} h6 {[%emt 0:02:04] A30: Symmetrical English: Double Fianchetto and Hedgehog.} 10. Qf4 {[%emt 0:00:22]} Nbd7 {[%emt 0:00:25] [#]} 11. Rb1 $146 {[%emt 0:28:23]} ({Predecessor:} 11. Rd1 Rc8 12. b3 Ne4 13. Nxe4 Bxa1 14. Ba3 Bg7 15. Rxd6 Qc7 16. Bh3 O-O 17. Rxd7 Qxf4 18. gxf4 Bxe4 {0-1 (35) Rademakers,E (2219)-Grooten,H (2384) Utrecht 2018}) 11... Rc8 {[%emt 0:00:39]} 12. b3 $1 {[%emt 0:04:26]} O-O {[%emt 0:09:09]} 13. Bb2 {[%emt 0:03:51]} Re8 {[%emt 0:05:01]} 14. Rfd1 {[%emt 0:01:58]} Rc5 {[%emt 0:03:06]} 15. Ne1 {[%emt 0:15:28][%cal Bf3e1,Be1g2,Bg2f4,Bf4d5][%mdl 32]} Rf5 {[%emt 0:10:14]} 16. Qd2 {[%emt 0:02:08]} Bxg2 {[%emt 0:03:58]} 17. Nxg2 {[%emt 0:01:25]} Rc5 {[%emt 0:01:23]} 18. Nf4 {[%emt 0:01:00]} Qa8 {[%emt 0:01:04]} 19. Nfd5 {[%emt 0:05:07]} h5 {[%emt 0:04:14]} 20. Ba3 {[%emt 0:02:41]} Rcc8 {[%emt 0:00:48]} 21. Nxf6+ {[%emt 0:03:35]} Nxf6 {[%emt 0:00:14]} 22. Nd5 {[%emt 0:00:18]} (22. Qe3 {keeps more tension.} Ng4 23. Qd3 a6 24. h3) 22... Nxd5 {[%emt 0:01:48]} (22... Qb7 {is interesting.} 23. Nxf6+ Bxf6 24. Rbc1 h4) 23. Qxd5 {[%emt 0:01:53]} Qxd5 {[%emt 0:00:51]} 24. Rxd5 {[%emt 0:00:13]} Rc6 {[%emt 0:02:10][%cal Ob6b5]} 25. Bc1 {[%emt 0:07:32]} e6 {[%emt 0:10:13]} 26. Rd2 {[%emt 0:01:11]} d5 {[%emt 0:01:59]} 27. cxd5 {[%emt 0:01:20]} exd5 {[%emt 0:01:23]} 28. Bb2 {[%emt 0:00:34]} Bxb2 {[%emt 0:04:28]} 29. Rbxb2 $11 {[%emt 0:00:09][%mdl 4096] Endgame KRR-KRR} Rd8 {[%emt 0:00:30]} 30. Rd4 {[%emt 0:01:25]} f5 {[%emt 0:01:06]} 31. Rbd2 {[%emt 0:00:27]} Rcd6 {[%emt 0:00:08]} 32. h3 {[%emt 0:00:38]} Kf7 {[%emt 0:00:01]} 33. g4 {[%emt 0:00:14]} hxg4 {[%emt 0:01:58]} 34. hxg4 {[%emt 0:00:14]} Ke6 {[%emt 0:02:01]} 35. Kg2 {[%emt 0:00:20]} Rf8 {[%emt 0:06:16]} 36. gxf5+ {[%emt 0:02:58]} gxf5 {[%emt 0:01:44]} 37. Rh4 {[%emt 0:01:29]} Rd7 {[%emt 0:06:45]} 38. Kf3 {[%emt 0:01:15]} Ke5 {[%emt 0:02:48]} 39. e3 {[%emt 0:01:45]} Rff7 {[%emt 0:01:47]} 40. Rh6 {[%emt 0:00:00]} Rh7 {[%emt 0:00:00] The position is equal.} 41. Rg6 {[%emt 0:06:19]} d4 {[%emt 0:03:32]} 42. exd4+ {[%emt 0:06:18]} Rxd4 {[%emt 0:00:19]} 43. Rxd4 {[%emt 0:00:05]} Kxd4 {[%emt 0:00:02] KR-KR} 44. Re6 {[%emt 0:00:11]} Kd5 {[%emt 0:02:18]} 45. Re2 {[%emt 0:00:45]} Rh4 {[%emt 0:00:04]} 46. Re7 {[%emt 0:02:29]} a5 {[%emt 0:02:40]} 47. Rf7 {[%emt 0:04:39]} Ke5 {[%emt 0:02:14]} 48. Re7+ {[%emt 0:01:35]} Kd5 {[%emt 0:00:29]} 49. Rf7 {[%emt 0:00:27]} Ke5 {[%emt 0:00:01] Weighted Error Value: White=0.07 (flawless) /Black=0.07 (flawless)} 1/2-1/2

[Event "Croatian 1B League 2022"]
[Site "Porec"]
[Date "2022.09.27"]
[Round "4.12"]
[White "Biliskov, Vjekoslav"]
[Black "Novosel, Lovro"]
[Result "1-0"]
[ECO "D53"]
[WhiteElo "2245"]
[BlackElo "2274"]
[Annotator "TA"]
[PlyCount "73"]
[EventDate "2022.09.24"]
[EventType "team-tourn"]
[EventCountry "CRO"]
[SourceTitle "playchess.com"]
[Source "ChessBase"]
[SourceQuality "1"]
[TimeControl "40/5400+30:1800+30"]

{[%evp 13,73,26,20,18,20,0,7,0,22,0,42,31,43,31,33,17,20,19,18,18,36,27,25,22,25,18,13,9,44,24,16,10,10,-31,-41,-25,-27,-118,-104,-331,578,553,790,784,1013,892,1522,1528,1489,1431,1442,1196,1436,1372,1564,1427,29986,29986,29987,29988,29984,2150]} 1. d4 {[%emt 0:00:06]} Nf6 {[%emt 0:00:12]} 2. c4 {[%emt 0:00:12]} e6 {[%emt 0:00:24]} 3. Nc3 {[%emt 0:00:13]} d5 {[%emt 0:00:33]} 4. Bg5 {[%emt 0:01:23]} Nbd7 {[%emt 0:00:27]} 5. e3 {[%emt 0:02:22]} h6 {[%emt 0:01:08]} 6. Bh4 {[%emt 0:01:15]} c6 {[%emt 0:02:02]} 7. Nf3 {[%emt 0:02:56]} Be7 {[%emt 0:01:28]} 8. cxd5 {[%emt 0:05:26] D53: Queen's Gambit Declined: 4 Bg5 Be7: Early deviations.} exd5 {[%emt 0:02:22]} 9. Bg3 {[%emt 0:00:58]} O-O {[%emt 0:01:48]} 10. Bd3 {[%emt 0:01:01] Against Ne4. The position is equal.} Re8 {[%emt 0:04:06]} 11. O-O {[%emt 0:00:57]} a5 {[%emt 0:06:55]} 12. Qc2 {[%emt 0:04:51][%cal Oc3b5]} Bf8 {[%emt 0:15:27]} 13. h3 {[%emt 0:05:59]} b5 {[%emt 0:08:15] [#]} 14. Ne5 $146 {[%emt 0:17:02]} ({Predecessor:} 14. Rfe1 Ba6 15. a3 Qb6 16. Ne5 b4 17. axb4 Bxd3 18. Nxd3 axb4 19. Na4 Qb5 20. b3 {½-½ (40) Houska,J (2360)-Harika,D (2517) Chennai 2022}) 14... Nxe5 {[%emt 0:04:26]} 15. Bxe5 {[%emt 0:01:17]} Nd7 {[%emt 0:04:40][%cal Bf6d7,Bd7b6,Bb6c4,Bc4d6,Bd6c4][%mdl 32]} 16. Bg3 {[%emt 0:00:50]} ({Much worse is} 16. Bh7+ Kh8 17. Bf5 Nxe5 18. dxe5 Rxe5 19. Bxc8 Rxc8 $17) 16... Nb6 {[%emt 0:01:01]} 17. Ne2 {[%emt 0:19:20][%cal Bc3e2,Be2c1,Bc1d3,Bd3c5][%mdl 32]} Bb7 {[%emt 0:07:23]} 18. Nc1 {[%emt 0:01:43]} a4 {[%emt 0:00:53]} 19. Be2 {[%emt 0:02:31]} Nc4 {[%emt 0:08:50]} 20. Nd3 {[%emt 0:00:52] Prevents c5.} Nd6 {[%emt 0:04:28]} (20... Qg5 {feels hotter.} 21. Kh2 Bc8 22. Ne5 Qf6) 21. Nc5 {[%emt 0:02:25] Threatens to win with Bxd6.} Bc8 {[%emt 0:00:28]} 22. Bd3 {[%emt 0:01:29]} Qf6 {[%emt 0:05:54]} 23. Be5 {[%emt 0:07:41]} Rxe5 {[%emt 0:00:25]} 24. dxe5 {[%emt 0:00:12]} Qxe5 {[%emt 0:00:05]} 25. e4 {[%emt 0:04:41]} (25. b3 $11 {keeps the balance.}) 25... Nc4 $17 {[%emt 0:00:51] ...Bd6 is the strong threat.} 26. exd5 $2 {[%emt 0:06:20] [#]} (26. b4 $17) 26... Bxc5 $4 {[%emt 0:00:52][%mdl 8192]} (26... Bd6 $1 $19 {[%csl Gd6][%cal Re5h2] and life is good for Black.} 27. Rfe1 Qh2+ 28. Kf1 Bxh3 29. gxh3 Qxh3+ 30. Ke2 Bxc5 31. Bxc4 Qh5+ 32. Kf1 Qh1+ 33. Ke2 Qh5+ 34. Kd3 (34. Kf1 $2 Qh1+ 35. Ke2 Re8+ 36. Kd2 Bb4+ 37. Qc3 Bxc3+ $19) 34... Qf3+ 35. Kd2 Bb4+ 36. Kc1 Bxe1) 27. Rfe1 {[%emt 0:00:19]} Bd6 {[%emt 0:11:45] aiming for ...Qh2+.} 28. Rxe5 {[%emt 0:00:09]} Bxe5 {[%emt 0:00:01]} 29. Re1 {[%emt 0:01:03]} f6 {[%emt 0:00:15]} 30. Bxc4 {[%emt 0:00:23]} bxc4 {[%emt 0:00:01]} 31. Qxc4 {[%emt 0:00:30]} Bf5 {[%emt 0:02:02]} 32. dxc6+ {[%emt 0:00:23][%cal Bd5c6,Bc6c7][%mdl 32]} Kh7 {[%emt 0:00:07]} 33. g4 {[%emt 0:01:00]} Bg6 {[%emt 0:00:09]} 34. f4 {[%emt 0:01:07][%cal Bf2f4,Bf4f5][%mdl 32]} Bxb2 {[%emt 0:00:42]} 35. c7 {[%emt 0:00:32] White mates.} Rc8 {[%emt 0:00:55]} 36. f5 {[%emt 0:00:23]} Be8 {[%emt 0:00:47] [#]} 37. Rxe8 $1 {[%emt 0:00:39] Weighted Error Value: White=0.26 (precise) /Black=0.57} 1-0

[Event "Croatian 1B League 2022"]
[Site "Porec"]
[Date "2022.09.28"]
[Round "5.1"]
[White "Draskovic, Luka"]
[Black "Movsesian, Sergei"]
[Result "1/2-1/2"]
[ECO "B23"]
[WhiteElo "2492"]
[BlackElo "2619"]
[Annotator "TA"]
[PlyCount "41"]
[EventDate "2022.09.24"]
[EventType "team-tourn"]
[EventCountry "CRO"]
[SourceTitle "playchess.com"]
[Source "ChessBase"]
[SourceQuality "1"]
[TimeControl "40/5400+30:1800+30"]

{[%evp 11,41,11,8,18,20,8,8,5,16,6,11,5,12,41,21,0,0,0,0,-10,-6,-7,-7,-10,-12,-27,-6,-7,-12,-1,-7,-5]} 1. e4 {[%emt 0:00:04]} c5 {[%emt 0:00:07]} 2. Nc3 {[%emt 0:00:26]} e6 {[%emt 0:00:46]} 3. Nge2 {[%emt 0:01:16]} Nc6 {[%emt 0:01:00]} 4. g3 {[%emt 0:01:01]} d5 {[%emt 0:01:42]} 5. exd5 {[%emt 0:00:41]} exd5 {[%emt 0:00:05]} 6. d4 {[%emt 0:00:06]} Bg4 {[%emt 0:00:54] [#] ...cxd4 is the strong threat.} 7. Bg2 {[%emt 0:00:39] B23: Closed Sicilian: Lines without g3.} Nxd4 {[%emt 0:00:16]} 8. h3 {[%emt 0:00:33]} Bf3 {[%emt 0:02:28]} 9. Kf1 {[%emt 0:00:57]} Qf6 {[%emt 0:00:57]} 10. Qd3 {[%emt 0:01:26] [#] Black must now prevent Nxd4.} Bxg2+ {[%emt 0:01:35]} 11. Kxg2 {[%emt 0:00:03]} Nxe2 {[%emt 0:00:34]} 12. Qxe2+ {[%emt 0:23:16]} Ne7 {[%emt 0:01:17] [#]} 13. Nxd5 $146 {[%emt 0:07:50]} (13. Nb5 {feels hotter.} Kd7 14. Rd1 Qe6 15. Qf3) ({Predecessor:} 13. Nb5 Rd8 14. Bf4 d4 15. Kh2 Rd7 16. Rhe1 a6 17. Nc7+ Kd8 18. Na8 Rg8 19. a4 {0-1 (51) Indjic,A (2612)-Volokitin,A (2652) Riga 2021}) 13... Qc6 {[%emt 0:00:58]} 14. c4 {[%emt 0:01:28]} O-O-O {[%emt 0:00:11][%cal Ba8d8,Bd8d6,Bd6d5][%mdl 32]} 15. Qg4+ {[%emt 0:08:10]} ({Reject} 15. Bg5 Nxd5 16. Qg4+ Rd7 17. cxd5 Qxd5+ 18. Kh2 h5 $17) 15... f5 {[%emt 0:02:24]} 16. Qf3 {[%emt 0:00:52] Hoping for Bg5.} Nxd5 {[%emt 0:02:17]} 17. Qxf5+ {[%emt 0:01:18]} Kc7 {[%emt 0:06:11]} 18. Qe5+ {[%emt 0:10:10]} Rd6 {[%emt 0:08:02] ( -> ...Nf4+)} 19. cxd5 {[%emt 0:00:07] The position is equal.} Qxd5+ {[%emt 0:00:02]} 20. Qxd5 {[%emt 0:00:07]} Rxd5 {[%emt 0:00:03]} 21. Be3 {[%emt 0:01:11] A balanced but interesting game.  Weighted Error Value: White=0.05 (flawless) /Black=0.02 (flawless)} 1/2-1/2

[Event "Croatian 1B League 2022"]
[Site "Porec"]
[Date "2022.09.28"]
[Round "5.2"]
[White "Jovanovic, Zoran"]
[Black "Skuhala, Jernej"]
[Result "1-0"]
[ECO "B10"]
[WhiteElo "2519"]
[BlackElo "2349"]
[Annotator "TA"]
[PlyCount "55"]
[EventDate "2022.09.24"]
[EventType "team-tourn"]
[EventCountry "CRO"]
[SourceTitle "playchess.com"]
[Source "ChessBase"]
[SourceQuality "1"]
[TimeControl "40/5400+30:1800+30"]

{[%evp 9,55,9,21,25,48,38,51,48,38,38,45,53,80,87,67,69,71,62,75,68,74,58,114,110,144,144,143,139,178,177,294,310,298,290,291,279,304,319,319,312,342,335,399,390,368,360,383,368]} 1. e4 {[%emt 0:01:37]} c6 {[%emt 0:00:11]} 2. Nf3 {[%emt 0:00:38]} d5 {[%emt 0:00:06]} 3. d3 {[%emt 0:00:06]} g6 {[%emt 0:00:22]} 4. Qe2 {[%emt 0:05:27]} Bg7 {[%emt 0:01:56]} 5. g3 {[%emt 0:00:11]} dxe4 {[%emt 0:10:18]} 6. dxe4 {[%emt 0:01:35] [#] B10: Caro-Kann: 2 d3 and 2 c4.} Bg4 $146 {[%emt 0:01:05]} ({Predecessor:} 6... e5 7. Nbd2 h6 8. Nc4 Qc7 9. Be3 b5 10. Ncxe5 Bxe5 11. Nxe5 Qxe5 12. O-O-O Nf6 {1-0 (68) Andreikin,D (2726)-Bologan,V (2574) Chess.com INT 2020}) 7. Nbd2 {[%emt 0:05:11]} Nd7 {[%emt 0:06:44]} 8. h3 {[%emt 0:11:01] White is slightly better.} Bxf3 {[%emt 0:00:43]} 9. Nxf3 {[%emt 0:08:38]} e6 {[%emt 0:00:30]} 10. Bg2 {[%emt 0:00:50]} Ne7 {[%emt 0:01:09]} 11. O-O {[%emt 0:03:44]} O-O {[%emt 0:01:05]} 12. Rd1 {[%emt 0:04:15]} Qc7 {[%emt 0:00:32]} 13. Bf4 {[%emt 0:00:10]} e5 {[%emt 0:07:43]} 14. Be3 {[%emt 0:01:09]} Rfd8 {[%emt 0:00:53]} 15. a4 {[%emt 0:00:58] White has more active pieces. The black rooks are badly placed.} Nf8 {[%emt 0:16:15]} (15... Nf6 $14) 16. h4 $16 {[%emt 0:04:46]} Ne6 {[%emt 0:01:25] [#]} 17. c3 $1 {[%emt 0:00:44]} Rxd1+ {[%emt 0:00:52]} 18. Rxd1 {[%emt 0:00:12]} (18. Qxd1 Rd8 19. Qb3 Nc8 $16) 18... Rd8 {[%emt 0:07:53]} 19. Bh3 {[%emt 0:01:24]} (19. Bxa7 $6 Rxd1+ 20. Qxd1 b6 $14) 19... h6 {[%emt 0:03:10]} (19... Rxd1+ $142 20. Qxd1 Nf8) 20. Bxe6 $18 {[%emt 0:00:53]} ({Weaker is} 20. Bxa7 Rxd1+ 21. Qxd1 c5 $14) 20... fxe6 {[%emt 0:00:31]} 21. Rxd8+ {[%emt 0:00:18]} ({Not} 21. Bxa7 Rxd1+ 22. Qxd1 c5 $14) 21... Qxd8 {[%emt 0:00:02]} 22. Qc4 {[%emt 0:00:13]} Kf7 {[%emt 0:00:44]} 23. Bxa7 {[%emt 0:09:29]} Nc8 {[%emt 0:02:29]} 24. Bc5 {[%emt 0:03:31]} ({Don't do} 24. Be3 $6 Qa5 25. b3 Qd8 $18) 24... Bf6 {[%emt 0:02:33]} 25. Kg2 {[%emt 0:01:51]} Qd7 {[%emt 0:02:36]} 26. a5 {[%emt 0:00:13] White is winning.} Qc7 {[%emt 0:01:39]} 27. b4 {[%emt 0:01:20]} Qd7 {[%emt 0:00:07]} 28. Qe2 {[%emt 0:00:21] Weighted Error Value: White=0.03 (flawless) /Black=0.22 (precise)} 1-0

[Event "Croatian 1B League 2022"]
[Site "Porec"]
[Date "2022.09.28"]
[Round "5.3"]
[White "Segovic, Goran"]
[Black "Bukal, Vladimir Jr."]
[Result "1-0"]
[ECO "B28"]
[WhiteElo "2304"]
[BlackElo "2411"]
[Annotator "TA"]
[PlyCount "75"]
[EventDate "2022.09.24"]
[EventType "team-tourn"]
[EventCountry "CRO"]
[SourceTitle "playchess.com"]
[Source "ChessBase"]
[SourceQuality "1"]
[TimeControl "40/5400+30:1800+30"]

{[%evp 9,75,61,55,46,50,39,49,33,41,11,47,20,20,0,0,-12,0,-7,0,0,0,0,0,-15,54,64,57,76,58,0,12,42,262,175,185,51,57,51,45,59,179,125,148,125,125,125,191,142,185,135,279,157,217,213,293,249,427,418,462,446,739,738,618,375,778,416,1240,1077]} 1. e4 {[%emt 0:00:03]} c5 {[%emt 0:00:05]} 2. Nf3 {[%emt 0:00:04]} a6 {[%emt 0:00:04]} 3. c3 {[%emt 0:00:13][%cal Bc2c3,Bc3c4,Bc4b5][%mdl 32]} d5 {[%emt 0:00:05]} 4. exd5 {[%emt 0:00:32]} Nf6 {[%emt 0:00:07]} 5. Qa4+ {[%emt 0:01:15]} Nbd7 {[%emt 0:02:56]} 6. c4 {[%emt 0:00:33] B28: Sicilian: 2 Nf3 a6 (O'Kelly Variation).} b5 {[%emt 0:00:16]} 7. cxb5 {[%emt 0:00:24] [#]} g6 $146 {[%emt 0:00:23]} ({Predecessor:} 7... Nxd5 8. Nc3 Nb4 9. b6 Qxb6 10. Bc4 e6 11. O-O Be7 12. Re1 O-O 13. Qb3 Kh8 {½-½ (29) Galdunts,S (2464)-Dausch,R (2306) Boeblingen 1999}) 8. Nc3 {[%emt 0:04:06][%cal Rb5a6] White is slightly better.} Bg7 {[%emt 0:00:54]} 9. d4 {[%emt 0:08:04] aiming for dxc5.} O-O {[%emt 0:09:30]} (9... Nb6 {is more complex.} 10. Qb3 cxd4 11. Nxd4 Nfxd5 12. Nxd5 Nxd5 13. bxa6 e6) 10. dxc5 {[%emt 0:05:06]} (10. bxa6 Nb6 11. Qb3 cxd4 12. Nxd4 Nfxd5 13. Nxd5 Qxd5 $11) 10... Nxc5 {[%emt 0:00:39]} 11. Qc4 {[%emt 0:06:23]} Ncd7 {[%emt 0:03:37]} 12. Qh4 {[%emt 0:17:38]} Nb6 {[%emt 0:06:58]} 13. Bh6 {[%emt 0:03:01]} Nbxd5 {[%emt 0:09:22]} 14. Bxg7 {[%emt 0:02:21]} Kxg7 {[%emt 0:00:19]} 15. Nxd5 {[%emt 0:03:13]} Nxd5 {[%emt 0:17:37]} 16. Qa4 {[%emt 0:07:52] Prevents Qa5+.} Bd7 {[%emt 0:10:20]} (16... Qb6 $11) 17. Qd4+ $14 {[%emt 0:02:03]} Nf6 {[%emt 0:00:48]} 18. bxa6 {[%emt 0:02:10]} e5 {[%emt 0:02:33]} 19. Nxe5 {[%emt 0:07:29]} (19. Qd6 $14 {deserves consideration.}) 19... Re8 $11 {[%emt 0:00:32]} 20. f4 {[%emt 0:00:26]} Ng4 $2 {[%emt 0:04:27]} (20... Qa5+ $1 $14 21. Qc3 Qb6) 21. O-O-O {[%emt 0:05:43] Black must now prevent Nxg4+.} Nxe5 {[%emt 0:02:27]} 22. Bc4 {[%emt 0:06:42]} (22. fxe5 $18 Qg5+ 23. Qd2 Rec8+ 24. Kb1 Bf5+ 25. Bd3 Bxd3+ 26. Qxd3) 22... Qc7 $14 {[%emt 0:10:13]} 23. b3 {[%emt 0:07:57] And now Rhe1 would win.} Bb5 {[%emt 0:11:01][%cal Rb5c4]} 24. fxe5 {[%emt 0:00:53] Strongly threatening e6+.} Re6 {[%emt 0:05:42] [#]} (24... Bxc4 $14 25. e6+ (25. bxc4 Kg8 $14) (25. Qxc4 Qxc4+ 26. bxc4 Rxa6 $14) 25... Kg8 26. Qxc4 (26. bxc4 Rxe6 27. Rd2 Rexa6 $15) 26... Qxc4+ 27. bxc4 Rxe6) 25. Rd2 {[%emt 0:03:05]} (25. Kb1 $1 $18 Bxc4 26. Qxc4 Qxc4 27. bxc4) 25... Raxa6 {[%emt 0:00:57]} 26. Rc2 {[%emt 0:01:07]} Bxc4 {[%emt 0:00:51]} 27. Rxc4 {[%emt 0:01:14]} Qe7 {[%emt 0:00:18]} (27... Qb7 $16) 28. Kb1 {[%emt 0:00:48]} (28. a4 $18) 28... Qg5 {[%emt 0:00:38]} 29. g4 {[%emt 0:02:15]} ({Better is} 29. Rf1 $18 {Rc7 is the strong threat.} Rxe5 30. g3) 29... Qh4 {[%emt 0:00:41]} (29... Qxe5 $16 {was called for.} 30. Qxe5+ Rxe5) 30. Qf4 {[%emt 0:01:19]} ({White should try} 30. Rc7 $18 {Hoping for Rf1.} Qh3 31. Qf2 Qd3+ 32. Kb2) 30... Ra7 {[%emt 0:00:35]} (30... Qe7 $16 {was necessary.} 31. h4 Rxe5) 31. Rd1 $18 {[%emt 0:00:52][%cal Bh1d1,Bd1d2,Bd2f2][%mdl 32]} Qh3 {[%emt 0:00:22]} 32. Kb2 {[%emt 0:00:47]} Rea6 $2 {[%emt 0:00:32] [#]} (32... Rae7 33. Rd5 h5) 33. a4 $1 {[%emt 0:00:35][%cal Oe5e6]} Rb7 {[%emt 0:00:27]} 34. Rc3 {[%emt 0:00:16]} Qg2+ {[%emt 0:00:17]} (34... Qh4 $142 35. Rd6 Ra8) 35. Rd2 {[%emt 0:00:13]} Qg1 {[%emt 0:00:37]} 36. Qd4 {[%emt 0:00:22]} Qf1 {[%emt 0:00:47]} (36... Qxd4 37. Rxd4 Ra5) 37. e6+ {[%emt 0:00:30]} f6 {[%emt 0:00:11]} (37... Qf6 $142 38. exf7 Qxd4 39. Rxd4 Kxf7) 38. Rf2 {[%emt 0:00:24] Weighted Error Value: White=0.55/Black=0.49} 1-0

[Event "Croatian 1B League 2022"]
[Site "Porec"]
[Date "2022.09.28"]
[Round "5.4"]
[White "Blazeka, Matej"]
[Black "Zadravec, Matija"]
[Result "1/2-1/2"]
[WhiteElo "2331"]
[BlackElo "2250"]
[Annotator "TA"]
[PlyCount "31"]
[EventDate "2022.09.24"]
[EventType "team-tourn"]
[EventCountry "CRO"]
[SourceTitle "playchess.com"]
[Source "ChessBase"]
[SourceQuality "1"]
[TimeControl "40/5400+30:1800+30"]

{[%evp 9,17,0,0,0,0,0,0,0,0,-5]} 1. e4 {[%emt 0:01:05]} e5 {[%emt 0:00:11]} 2. Nf3 {[%emt 0:00:08]} Nc6 {[%emt 0:00:02]} 3. Nc3 {[%emt 0:00:02]} Nf6 {[%emt 0:00:18]} 4. a3 {[%emt 0:00:02]} d5 {[%emt 0:05:43]} 5. Bb5 {[%emt 0:00:22]} Nxe4 {[%emt 0:03:08] The position is equal.} 6. Qe2 {[%emt 0:03:17] C47: Scotch Four Knights and Four Knights with 4 g3.} Qd6 {[%emt 0:01:55] And now ...Nxc3 would win.} 7. Nxe4 {[%emt 0:06:58]} dxe4 {[%emt 0:00:21]} 8. Qxe4 {[%emt 0:00:59]} Bd7 {[%emt 0:00:05]} 9. d4 {[%emt 0:00:45] [#] An even fight not without its subleties.} {Predecessor:} O-O-O $146 10. dxe5 Nxe5 11. Bxd7+ Qxd7 12. O-O Nxf3+ 13. Qxf3 Qd5 14. Qg3 Bd6 15. Bf4 Bxf4 16. Qxf4 {½-½ (28) Tari,A (2672)-Dubov,D (2702) Chess.com INT 2022} 1/2-1/2